Cogmind - Beta 16 @@@ ROGUE MODE // 2025.11.02 @ 21:02:13 Player: Cameron Result: Destroyed by Shrapnel Trap Performance ------------- Evolutions (0) 0 Regions Visited (2) 400 Robots Destroyed (13) 65 Value Destroyed (293) 293 Prototype IDs (4) 80 Alien Tech Used (0) 0 Bonus (0) 0 TOTAL SCORE: 838 Bonus ------- None Cogmind --------- Core Integrity 0/250 Matter 285/300 Energy 246/250 System Corruption 4% Temperature Cool (2) Movement Walking (120) Location -10/Subcaves Parts ------- > --- POWER (1) -------- Ion Engine > --- PROPULSION (2) --- Aluminum Leg Aluminum Leg > --- UTILITY (2) ------ Improved Heat Sink Small Storage Unit > --- WEAPON (2) ------- Small Laser Subdweller Beam Cannon > --- INVENTORY (8) ---- Ion Engine Light Ion Engine Aluminum Leg Aluminum Leg Aluminum Leg Compact Wheel Heat Sink Medium Laser Peak State ------------ > --- POWER ------------ Ion Engine > --- PROPULSION ------- Aluminum Leg Aluminum Leg > --- UTILITY ---------- Improved Heat Sink Small Storage Unit > --- WEAPON ----------- Small Laser Subdweller Beam Cannon > --- INVENTORY -------- Ion Engine Light Ion Engine Aluminum Leg Aluminum Leg Aluminum Leg Compact Wheel Heat Sink Medium Laser [Rating: 10] Favorites ----------- Power Ion Engine Engine Ion Engine Propulsion Aluminum Leg Leg Aluminum Leg Utility Small Storage Unit Device Improved Heat Sink Storage Small Storage Unit Weapon Small Laser Energy Gun Small Laser Energy Cannon Subdweller Beam Cannon Ballistic Gun Light Assault Rifle Build | -11 -10 -10 ------- Run | Yrd Mat Sub Slots Evolved . | . . . Power . | . . . Propulsion . | . . . Utility . | . . . Weapon . | . . . Parts Attached 14 | 7 6 1 Power 1 | 1 . . Engine 1 | 1 . . Core . | . . . Reactor . | . . . Propulsion 4 | 2 2 . Treads . | . . . Leg 4 | 2 2 . Wheel . | . . . Hover . | . . . Flight . | . . . Utility 3 | 1 2 . Device 2 | . 2 . Storage 1 | 1 . . Processor . | . . . Hackware . | . . . Protection . | . . . Artifact . | . . . Weapon 6 | 3 2 1 Energy Gun 4 | 2 2 . Energy Cannon 1 | . . 1 Ballistic Gun 1 | 1 . . Ballistic Cannon . | . . . Launcher . | . . . Special Weapon . | . . . Impact Weapon . | . . . Slashing Weapon . | . . . Piercing Weapon . | . . . Special Melee Weapon . | . . . Unidentified Prototypes . | . . . Parts Lost . | . . . Power . | . . . Propulsion . | . . . Utility . | . . . Weapon . | . . . Highest Loss Streak . | . . . To Critical Strikes . | . . . Average Backups 6 | 1 7 8 Power 1 | . 1 2 Propulsion 3 | . 3 4 Utility . | . . 1 Weapon . | . . 1 Tool/Special . | . . . Unused Backups 7 | . 2 5 Power 2 | . . 2 Propulsion 2 | . . 2 Utility 1 | . 1 . Weapon 1 | . . 1 Tool/Special 1 | . 1 . Average Slot Usage (%) 96 | . 95 100 Engine 14 | . 14 14 Leg 28 | . 28 28 Device 11 | . 9 14 Storage 14 | . 14 14 Energy Gun 24 | . 24 24 Energy Cannon 1 | . . 3 Ballistic Gun 2 | . 3 . Peak Build Rating 10 | 6 9 10 Average Rating 8 | 4 7 9 On Entrance 5 | . 6 9 Avg Prop Armor Cover (%) . | . . . Naked Turns . | . . . Heaviest Build 20 | 14 14 20 Greatest Support 20 | 20 20 20 Greatest Overweight (x) 3 | 3 . . Average Overweight (x) . | . . . Largest Inventory Capacity 8 | 8 8 8 Average Capacity 7 | 7 8 8 Most Carried 8 | 3 8 8 Average Carried 7 | 1 7 8 Final Capacity 8 | 8 8 8 Final Carried 8 | 2 8 8 Class Distribution -------------------- 72% | Scavenger-Mutant 27% | Mutant Dominant Class ---------------- Scavenger-Mutant | -10/Materials Scavenger-Mutant | -10/Subcaves Resources | -11 -10 -10 ----------- Run | Yrd Mat Sub Matter Collected 409 | 248 124 37 Remotely . | . . . Salvage Created 336 | . 294 42 Parts 23 | . 23 . Haulers Intercepted 1 | . 1 . Recyclers Shooed . | . . . Parts Field Recycled . | . . . Retrieved Matter . | . . . Parts Self-Destructed 5 | . . 5 Prevented . | . . . Parts Restored . | . . . Kills | -11 -10 -10 ------- Run | Yrd Mat Sub Combat Hostiles Destroyed 10 | . 9 1 Guns 10 | . 9 1 Classes Destroyed 6 | . 5 1 Worker 1 | . 1 . Builder 1 | . 1 . Hauler 1 | . 1 . Swarmer 6 | . 6 . Grunt 3 | . 3 . Subdweller 1 | . . 1 Best Kill Streak 3 | . 3 1 Combat Bots Only 3 | . 3 1 Max Kills in Single Turn 2 | . 2 1 Gunslinging 1 | . 1 . Exploded . | . . . Melee . | . . . Uniques/NPCs Destroyed . | . . . Combat | -11 -10 -10 -------- Run | Yrd Mat Sub Hostile Shots Fired 59 | . 47 12 Missed 24 | . 16 8 Hits 35 | . 31 4 Projectile 35 | . 31 4 Damage Taken 611 | . 470 141 Core 253 | . 158 95 Absorbed by Shields . | . . . Regen/Repaired (Parts) 36 | . 36 . Core Remaining (%) 100 | 100 . . Volleys Fired 50 | . 37 13 Largest 2 | . 2 2 Hottest 90 | . 90 80 Shots Fired 102 | . 75 27 Gun 102 | . 75 27 Cannon . | . . . Launcher . | . . . Special . | . . . Kinetic 17 | . 17 . Thermal 85 | . 58 27 Explosive . | . . . Electromagnetic . | . . . Robot Hit Streak 10 | . 10 7 Robot Miss Streak 4 | . 4 4 Penetration Max . | . . . Secondary Targets 4 | . 4 . Max Gunslinging Chain 1 | . 1 . Shots Hit Robots 56 | . 45 11 Core Hits 20 | . 18 2 Critical Kills . | . . . Critical Parts Destroyed . | . . . Critical Strikes 1 | . 1 . Burn 1 | . 1 . Melee Attacks . | . . . Impact . | . . . Slashing . | . . . Piercing . | . . . Sneak Attacks . | . . . Combat Hostiles . | . . . Follow-up Attacks . | . . . Damage Inflicted 916 | . 799 117 Guns 619 | . 502 117 Cannons . | . . . Explosions 294 | . 294 . Melee . | . . . Ramming 3 | . 3 . Kinetic 58 | . 58 . Thermal 561 | . 444 117 Explosive 294 | . 294 . Electromagnetic . | . . . Impact . | . . . Slashing . | . . . Piercing . | . . . Highest Corruption 4 | . 4 4 Average Corruption 2 | . 1 4 Corruption Purged . | . . . Corruption Blocked . | . . . Effects 13 | . 5 8 Message Errors 2 | . 2 . Matter Fused 6 | . 2 4 Heat Flow Errors 3 | . . 3 Misfires 2 | . 1 1 Overload Shots . | . . . Overflow Damage 63 | . 63 . Projectiles . | . . . Explosions 63 | . 63 . Melee . | . . . Knockbacks . | . . . Impact . | . . . Kinetic . | . . . Secondary . | . . . Self-Inflicted Damage 152 | . 152 . Shots 2 | . 2 . Rammed . | . . . Targets Rammed 1 | . 1 . Kicked 1 | . 1 . Crushed . | . . . Highest Temperature 229 | . 136 229 Average Temperature 50 | . 46 90 Received Heat Transfer 132 | . 108 24 Siege Activations . | . . . Martial Activations . | . . . Shielding Activations . | . . . Robots Disrupted . | . . . Combat Hostiles . | . . . Robots Corrupted . | . . . Combat Hostiles . | . . . Parts Fried . | . . . Impact Corruptions . | . . . Robots Melted . | . . . Combat Hostiles . | . . . Parts Melted 4 | . 4 . Heat Transferred 1503 | . 1228 275 Parts Sabotaged . | . . . Parts Stolen . | . . . Parts Stripped . | . . . Power Chain Reactions . | . . . Alert | -11 -10 -10 ------- Run | Yrd Mat Sub Maximum Alert Level 1 | . 1 . Low Security (%) 83 | 100 81 . Level 1 16 | . 18 . Level 2 . | . . . Level 3 . | . . . Level 4 . | . . . Level 5 . | . . . High Security . | . . . Max Security . | . . . Peak Influence 225 | . 225 . Initial . | . . . Average 132 | . 146 . Influence Increases 413 | . 413 . Destroy 0b10 Robot/C 180 | . 180 . Destroy 0b10 Robot/NC 15 | . 15 . Destroy Leader 42 | . 42 . Successful Hack 37 | . 37 . Disable Machine 105 | . 105 . Destroy Structure 19 | . 19 . Lose Combat Pursuer 15 | . 15 . Influence Decreases 413 | . 296 117 Entered New Map 57 | . . 57 Time Decay 356 | . 296 60 Squads Dispatched 3 | . 3 . Investigation 2 | . 2 . Extermination . | . . . Reinforcement 1 | . 1 . Assault . | . . . Garrison . | . . . Intercept . | . . . Searches Triggered . | . . . Construction Impeded . | . . . Haulers Reinforced . | . . . Active Scanning Responses . | . . . Cargo Convoy Interrupts . | . . . Stealth | -11 -10 -10 --------- Run | Yrd Mat Sub Distress Signals 1 | . 1 . Communications Jammed . | . . . Distress Signals . | . . . Times Spotted 22 | . 19 3 Peak Tracking Total 6 | . 6 1 Tactical Retreats 1 | . 1 . Traps | -11 -10 -10 ------- Run | Yrd Mat Sub Traps Triggered 5 | . 3 2 Indirectly . | . . . Trap Hack Attempts . | . . . Triggered . | . . . Disarmed . | . . . Reprogrammed . | . . . Reused . | . . . Traps Extracted . | . . . Installed . | . . . Triggered . | . . . Machines | -11 -10 -10 ---------- Run | Yrd Mat Sub Machines Disabled 7 | . 7 . Max in Single Turn 3 | . 3 . Machines Repaired . | . . . Machines Dismantled . | . . . Machines Sabotaged . | . . . Overloaded Fab Kills . | . . . Hacking | -11 -10 -10 --------- Run | Yrd Mat Sub Machines Accessed 8 | . 8 . Terminals 6 | . 6 . Fabricators . | . . . Repair Stations 1 | . 1 . Recycling Units 1 | . 1 . Scanalyzers . | . . . Garrison Access . | . . . Total Hacks 26 | . 26 . Successful 14 | . 14 . Failed 12 | . 12 . Catastrophic . | . . . Database Lockouts . | . . . Manual 4 | . 4 . Terminals 20 | . 20 . Fabricators . | . . . Repair Stations 3 | . 3 . Recycling Units 3 | . 3 . Scanalyzers . | . . . Garrison Access . | . . . Terminal Hacks 10 | . 10 . Robot Analysis 1 | . 1 . Prototype ID Bank 2 | . 2 . Branch Access Points 1 | . 1 . Terminal Index 2 | . 2 . Locate Traps 1 | . 1 . Recall Investigation 1 | . 1 . Hauler Manifests 1 | . 1 . Registered Components 1 | . 1 . Fabricator Hacks . | . . . Repair Station Hacks 2 | . 2 . Scan Component 1 | . 1 . Repair 1 | . 1 . Recycling Unit Hacks 2 | . 2 . Report Inventory 1 | . 1 . Retrieve Components 1 | . 1 . Scanalyzer . | . . . Garrison Access Hacks . | . . . Unauthorized Hacks . | . . . Terminals . | . . . Fabricators . | . . . Repair Stations . | . . . Recycling Units . | . . . Scanalyzers . | . . . Garrison Access . | . . . Data Cores Recovered . | . . . Used . | . . . Hacking Detections 8 | . 8 . Full Trace Events 4 | . 4 . Feedback Events 1 | . 1 . Corruption 1 | . 1 . Feedback Blocked . | . . . Robot Schematics Acquired . | . . . Robots Built . | . . . Authchips . | . . . Time . | . . . Total Robot Build Rating . | . . . Part Schematics Acquired . | . . . Parts Built . | . . . Authchips . | . . . Time . | . . . Total Part Build Rating . | . . . Part Studies Acquired . | . . . Parts Repaired 1 | . 1 . Time 38 | . 38 . Parts Recycled . | . . . Recycled Matter . | . . . Retrieved Matter . | . . . Retrieved Components 3 | . 3 . Parts Scanalyzed . | . . . Part Schematics Acquired . | . . . Parts Damaged . | . . . Bothacking | -11 -10 -10 ------------ Run | Yrd Mat Sub Used RIF Installer . | . . . Robots Hacked . | . . . Non-combat . | . . . Combat . | . . . Robot Hacks Applied . | . . . Relay Couplers Released . | . . . Fabnet Peak Effective % . | . . . Robots Rewired . | . . . Allies Hacked . | . . . Hacks Repelled . | . . . Allies | -11 -10 -10 -------- Run | Yrd Mat Sub Total Allies . | . . . Largest Group . | . . . Highest-Rated Group . | . . . Highest-Rated Ally . | . . . Total Orders . | . . . Ally Attacks . | . . . Total Damage . | . . . Kills . | . . . Allies Corrupted . | . . . Allies Melted . | . . . Intel | -11 -10 -10 ------- Run | Yrd Mat Sub Active Infowar (turns) . | . . . Robot Analysis Total 1 | . 1 . Derelict Logs Recovered . | . . . Drone Launches . | . . . Drone Recoveries . | . . . Exploration | -11 -10 -10 ------------- Run | Yrd Mat Sub Turns Passed 1198 | 77 722 399 Spaces Moved 777 | 50 451 276 Core 13 | 13 . . Treads . | . . . Legs 764 | 37 451 276 Wheels . | . . . Hover . | . . . Flight . | . . . Fastest Speed 50 | 50 120 120 Average Speed 120 | 127 120 120 Slowest Speed 200 | 200 120 120 Overloaded Moves . | . . . Propulsion Burnouts . | . . . Robots Hopped . | . . . Potential Cave-ins . | . . . Cave-ins Triggered . | . . . Exploration Rate (%) 39 | 6 88 23 Regions Visited 2 Branch Regions 1 Pre-discovered Areas . | . . . Known Exits Taken . | . . . Unknown Exits Taken 2 | 1 1 . Scrap Searched 1 | . . 1 Spaces Dug . | . . . Terrain Destroyed 17 | . 17 . Melee . | . . . Projectile . | . . . AOE 17 | . 17 . Terrain Rammed . | . . . Walls Destroyed . | . . . Machines Disabled . | . . . Actions | -11 -10 -10 --------- Run | Yrd Mat Sub Total 942 | 60 563 319 Wait 77 | . 49 28 Move 775 | 49 450 276 Hop . | . . . Pick Up 13 | 3 10 . Fast Attach 8 | 6 1 1 Attach 1 | . 1 . Detach . | . . . Swap 8 | 1 7 . Drop 9 | 1 7 1 Fire 50 | . 37 13 Melee . | . . . Ram . | . . . Kick 1 | . 1 . Crush . | . . . Escape Stasis . | . . . Rewire . | . . . Trap . | . . . Miscellaneous . | . . . Route ------- -11/Scrapyard -10/Materials (discovered 5 exits: [*Mat x2] / *Min x2 / [*Sub]) -10/Subcaves History --------- Turn | Location | Event 11 | -11/Scrapyard | Discovered new exit (range 16) 78 | -11/Scrapyard | Entered Materials 207 | -10/Materials | Discovered new exit (range 15) 265 | -10/Materials | Identified exit to Mines 312 | -10/Materials | Core integrity fell below 50% 313 | -10/Materials | Build established: Mutant 639 | -10/Materials | Build established: Scavenger-Mutant 664 | -10/Materials | Discovered new exit (range 11) 717 | -10/Materials | Repaired Imp. Heat Sink 787 | -10/Materials | Discovered new exit (range 12) 800 | -10/Materials | Entered Subcaves 801 | -10/Subcaves | Approached by a straggling Scientist 1091 | -10/Subcaves | Shifting Twisted Machinery released Sub. Beam Cannon 1100 | -10/Subcaves | Shifting Twisted Machinery released Battle Cannon 1187 | -10/Subcaves | Core integrity fell below 20% 1199 | -10/Subcaves | Destroyed by Shrapnel Trap Last Messages --------------- 01059_ System corrupted: Matter fused (-7). 01063_ Acquired 7 matter. Sub. Beam Cannon falls loose from the Twisted Machinery. 01095_ Dropped Sml. Laser. 01095_ Acquired Sub. Beam Cannon. Battle Cannon falls loose from the Twisted Machinery. 01103_ Subatomizers dissect the Sub. Optics. 19-NZF(c): "I think it's somewhere northeast of here" 01125_ Subatomizers dissect the Sub. Optics. 19-NZF(c): "I think it's somewhere northeast of here" 01186_ Triggered Piercing Trap. 01186_ Spikes shoot up from the floor. 01195_ System corrupted: Matter fused (-5). 01199_ Triggered Shrapnel Trap. 01199_ An expanding cloud of shrapnel blasts out in all directions. Map ----- +----------------------------------------------------+ | ???????????????????????# "" ]"" "#?????????? | | ???????????????????????## """" #?????????? | | ????????????????????????##""" # """#?????????? | | ?????????????????????????##"" #### """#?????????? | | ????????????????????????####"" #####"""##????????? | | ??????????##????????????# ## ## ###""""##???????? | | ?????????## ???#####???# ## "###""""#####???? | | ?????????# ??# ??## "#?##" " ##??? | | ??????????# #?# ??# "###"" #??? | | ??????????# ## ### #??? | | ???????????# """" ##??? | | ????????????# # # """" #???? | | ????????##### ######"""####???? | | ???????## ### #????#####??????? | | ???????# #?## #???????????????? | | ???????# #### ## #???????????????? | | ????????# ## ######???????????????? | | ????????# # #????????????????????? | | ???????# ## ##^ #????????????????????? | | ??????? ??## ### ##????????????????????? | | ??????? ????# ####?????????????????????? | | ??????# ??# #???????????????????????? | | ??????# ## ##???????????????????????? | | ????????? ?# #????????????????????????? | | ??????????#?## ###??????????????????????? | | ??????????# @### #?????????? | | ??????????## #?????????????? | | ???????????#### #?????????????? | | ??????????????# ### #### #?????????????? | | ??????????????# ##?####????? #?????????????? | | ??????????????# ??????????????#?????????????? | | ?????????????# ##????????????????????????????? | | ???????????? #??????????????????????????????? | | ???????????### ###???????????????????????????????? | | ?????????????##??????????????????????????????????? | | ?????????????????????????????????????????????????? | | ?????????????????????????????????????????????????? | | ?????????????????????????????????????????????????? | | ?????????????????????????????????????????????????? | | ?????????????????????????????????????????????????? | | ?????????????????????????????????????????????????? | | ?????????????????????????????????????????????????? | | ?????????????????????????????????????????????????? | | ?????????????????????????????????????????????????? | | ?????????????????????????????????????????????????? | | ?????????????????????????????????????????????????? | | ?????????????????????????????????????????????????? | | ?????????????????????????????????????????????????? | | ?????????????????????????????????????????????????? | | ?????????????????????????????????????????????????? | +----------------------------------------------------+ Best States ------------- Heat Dissipation 39 Energy Generation 10 Energy Capacity 250 Matter Stores 300 Matter Capacity 300 Sight Range 16 Terrain Scan Density 10 Evasion (%) 55 Item Schematics ----------------- None Robot Schematics ------------------ None Fabricated ------------ Nothing Repaired ---------- Imp. Heat Sink | 10% | -10/Materials Studied --------- None Alien Tech Used ----------------- None Achievements -------------- None Challenges ------------ None Game ------ Seed MultitargetingConceptLink Manual? 0 Play Time 00:13:38 Cumulative 43.7 hours Start 2025.11.02 @ 20:48:53 End 2025.11.02 @ 21:02:13 Sessions 1 Manual Loads 0 Difficulty Rogue Special Mode None Game No. 42 Rogue 42 Adventurer 0 Explorer 0 Win Type - Total 0 Types 0/0/0/0/0/0/0/0/0/0 Lore% 14 Gallery% 31 Achievement% 23 Wizard Run 0 Options --------- Layout 1 ASCII 0 Keyboard 0 Movement Numpad Keybinds 0 Fullscreen 2 Font 32/SmallcapsGlow Map View 50x35 Zoom Use 0% Tactical HUD 1 Map Filters NONE Filters NONE Steam 1 RUN: 6cfdd15a-aaf8-4f6e-a0cd-cc1dd718c898